bitfinex-derivatives/quotes_BTCF0:USTF0_20240905
["timestamp","ask_amount","ask_price","bid_price","bid_amount"]
[1725564109757,0.26072269,56053.0,56050.0,0.3608]
[1725564109758,0.20222598,56053.0,56050.0,0.3608]
[1725564110265,0.089217,56052.0,56050.0,0.004]
[1725564111263,0.00026756,56056.0,56051.0,0.3608]
[1725564111471,0.001,56053.0,56051.0,0.450016]
[1725564111656,0.001,56053.0,56052.0,0.7108]
[1725564111966,0.00026756,56056.0,56050.0,0.3648]
[1725564112176,0.002,56051.0,56050.0,0.004]
[1725564112655,0.089236,56040.0,56038.0,0.3608]
[1725564112862,0.002,56039.0,56031.0,0.3608]
[1725564113063,0.002,56032.0,56031.0,0.3608]
[1725564113355,0.002,56039.0,56031.0,0.3608]
[1725564113560,0.091236,56039.0,56038.0,0.002]
[1725564113766,0.089248,56032.0,56031.0,0.3608]
[1725564113972,0.089248,56032.0,56023.0,0.3608]
[1725564113973,0.08926,56024.0,56023.0,0.3608]
[1725564114268,0.08926,56024.0,55997.0,0.089302]
[1725564114269,0.089266,56021.0,56019.0,0.3608]
[1725564114469,0.002,56020.0,56019.0,0.3608]
[1725564114766,0.03766697,56021.0,56019.0,0.3608]
[1725564114968,0.00026756,56026.0,56020.0,0.002]
[1725564115171,0.089264,56022.0,56020.0,0.002]
[1725564115666,0.689264,56022.0,56020.0,0.002]
[1725564115872,0.6,56022.0,56008.0,0.3608]
[1725564116166,0.3628,56009.0,56002.0,0.3608]
[1725564116368,0.002,56003.0,56002.0,0.3608]
[1725564116572,0.00026783,56011.0,56002.0,0.7216]
[1725564116761,0.00026783,56011.0,56010.0,0.3628]
[1725564117066,0.00026783,56011.0,56010.0,0.3608]
[1725564117668,0.00026783,56011.0,56010.0,0.3668]
[1725564118769,0.00126783,56011.0,56010.0,0.3668]
[1725564119274,0.60126783,56011.0,56010.0,0.006]
[1725564119968,0.00126783,56011.0,56010.0,0.006]
[1725564120167,0.00126783,56011.0,56009.0,0.450084]
[1725564120364,0.0041,56024.0,56010.0,0.3608]
[1725564120570,0.0048,56034.0,56023.0,0.3608]
[1725564120571,0.0041,56031.0,56023.0,0.3608]
[1725564120766,0.7708,56038.0,56023.0,0.450062]
[1725564120767,0.77200001,56038.0,56023.0,0.450062]
[1725564121172,0.7708,56038.0,56023.0,0.3608]
[1725564121370,0.7708,56038.0,56013.0,0.0041]
[1725564121371,0.00026783,56036.0,56032.0,0.3608]
[1725564121568,0.0041,56048.0,56034.0,0.450044]
[1725564121765,0.41,56049.0,56041.0,0.3608]
[1725564122068,0.3608,56046.0,56034.0,0.3608]
[1725564122267,0.004,56035.0,56034.0,0.3608]
[1725564122571,0.00026783,56042.0,56034.0,2.8216]
[1725564122779,0.00026783,56042.0,56041.0,0.450033]
[1725564122963,0.0041,56056.0,56041.0,0.3608]
[1725564123269,0.3608,56057.0,56046.0,0.3608]
[1725564124075,0.00026783,56057.0,56053.0,0.3608]
[1725564124373,0.41,56054.0,56046.0,0.36106783]
[1725564124572,0.004,56047.0,56046.0,0.36106783]
[1725564124870,0.089213,56054.0,56046.0,0.36106783]
[1725564125073,0.30229675,56055.0,56046.0,0.36106783]
[1725564125773,0.30229675,56055.0,56049.0,0.08922]
[1725564125959,0.00026783,56057.0,56054.0,0.3608]
[1725564126160,0.09039901,56063.0,56054.0,0.3608]
[1725564126373,0.0041,56072.0,56065.0,0.089195]
[1725564126567,0.3608,56081.0,56071.0,0.3608]
[1725564126568,0.089178,56076.0,56071.0,0.3608]
[1725564126867,0.3608,56081.0,56071.0,0.449985]
[1725564127258,0.3608,56081.0,56071.0,0.3608]
[1725564127876,0.00026758,56082.0,56075.0,0.089178]
[1725564128178,0.001,56081.0,56076.0,0.3608]
[1725564128565,0.001,56081.0,56078.0,0.089174]
[1725564128760,0.00026758,56082.0,56078.0,0.089174]
[1725564128967,0.001,56081.0,56079.0,0.089172]
[1725564129375,0.001,56081.0,56076.0,0.3608]
[1725564129570,0.004,56077.0,56076.0,0.3608]
[1725564129882,0.004,56077.0,56076.0,0.449977]
[1725564130170,0.004,56077.0,56076.0,1.051977]
[1725564130376,0.00026758,56082.0,56080.0,0.089171]
[1725564130573,0.089108,56120.0,56076.0,0.9628]
[1725564130574,0.0041,56095.0,56081.0,0.7628]
[1725564130779,0.3608,56103.0,56094.0,0.3628]
[1725564130973,0.089146,56096.0,56089.0,0.3608]
[1725564131170,0.002,56090.0,56089.0,0.3608]
[1725564131382,0.002,56090.0,56089.0,1.8608]
[1725564131679,0.00026758,56095.0,56089.0,2.4608]
[1725564131876,0.00826758,56095.0,56094.0,0.002]
[1725564132372,0.00026758,56095.0,56094.0,0.002]
[1725564133066,0.08941458,56095.0,56094.0,0.002]
[1725564133267,0.00026758,56095.0,56094.0,0.002]
[1725564133778,0.00026758,56095.0,56094.0,0.3628]
[1725564134268,0.01426758,56095.0,56094.0,0.3628]
[1725564134464,0.089122,56112.0,56094.0,0.9628]
[1725564134465,0.4,56106.0,56094.0,0.9628]
[1725564134666,0.4,56106.0,56105.0,0.002]
[1725564134866,0.48913,56106.0,56105.0,0.002]
[1725564135674,0.178276,56101.0,56100.0,0.00026758]
[1725564135978,0.539076,56101.0,56100.0,5.8e-07]
[1725564136170,0.089166,56083.0,56082.0,0.0131]
[1725564136369,0.089168,56082.0,56076.0,0.3608]
[1725564136764,0.089176,56077.0,56076.0,0.3608]
[1725564136964,0.089187,56070.0,56069.0,0.3608]
[1725564137179,0.491187,56070.0,56069.0,0.3608]
[1725564137378,0.089187,56070.0,56069.0,0.3608]
[1725564137878,0.089195,56065.0,56064.0,0.00026758]
[1725564138375,0.004,56065.0,56064.0,0.00026758]
[1725564138563,0.004,56065.0,56064.0,0.68946458]
[1725564138971,0.00357616,56065.0,56064.0,0.68946458]
[1725564139983,0.001,56070.0,56069.0,0.089189]
[1725564140168,0.00026758,56075.0,56074.0,0.089181]
[1725564140368,0.00026758,56075.0,56074.0,0.449981]
[1725564140576,0.00026758,56075.0,56074.0,2.549981]
[1725564141481,0.00026758,56075.0,56074.0,2.563981]
[1725564141670,0.0041,56091.0,56086.0,0.089161]
[1725564141873,0.089147,56095.0,56090.0,0.3608]
[1725564142271,0.3608,56099.0,56084.0,0.4]
[1725564142471,0.3608,56099.0,56088.0,0.3608]
[1725564142668,0.24496746,56099.0,56088.0,0.36106758]
[1725564142869,0.24496746,56099.0,56088.0,0.44981016]
[1725564143073,0.089152,56093.0,56088.0,0.44981016]
[1725564143281,0.089157,56089.0,56088.0,0.36106758]
[1725564143484,0.089157,56089.0,56088.0,0.00026758]
[1725564144375,0.04454294,56089.0,56088.0,0.00026758]
[1725564144682,0.04454294,56089.0,56079.0,0.3608]
[1725564144683,0.089165,56084.0,56079.0,0.3608]
[1725564144878,0.004,56080.0,56079.0,0.44954258]
[1725564145176,0.093171,56080.0,56079.0,0.58461666]
[1725564145376,0.093171,56080.0,56079.0,0.13591193]
[1725564145579,0.004,56080.0,56077.0,0.08794646]
[1725564145782,0.093171,56080.0,56079.0,0.3608]
[1725564146078,0.489167,56083.0,56074.0,0.44901404]
[1725564146079,0.49036701,56083.0,56074.0,0.44901404]
[1725564146382,0.093179,56075.0,56074.0,0.36106758]
[1725564146581,0.093179,56075.0,56074.0,0.49699977]
[1725564147076,0.093179,56075.0,56074.0,0.49699904]
[1725564147582,0.004,56075.0,56074.0,0.58618004]
[1725564147773,0.004,56075.0,56074.0,0.75161503]
[1725564148870,0.004,56075.0,56074.0,1.35161503]
[1725564149179,0.004,56075.0,56074.0,1.54656067]
[1725564149382,0.093179,56075.0,56074.0,0.8573805]
[1725564149675,0.093179,56075.0,56074.0,0.66243403]
[1725564149877,0.093179,56075.0,56074.0,0.30164539]
[1725564150080,0.093179,56075.0,56074.0,0.13619904]
[1725564150273,0.093179,56075.0,56074.0,0.13819904]
[1725564150480,0.093179,56075.0,56074.0,0.49899904]
[1725564150782,0.094179,56075.0,56074.0,0.50699904]
[1725564151172,0.094179,56075.0,56074.0,0.67244927]
[1725564151369,0.004,56075.0,56074.0,0.66244927]
[1725564151574,0.014,56075.0,56074.0,0.75263027]
[1725564152495,0.014,56075.0,56074.0,1.35263027]
[1725564152687,0.014,56075.0,56074.0,1.67162794]
[1725564152875,0.014,56075.0,56074.0,1.54758094]
[1725564153071,0.014,56075.0,56074.0,1.63676194]
[1725564153269,0.008,56075.0,56074.0,1.63576194]
[1725564153469,0.008,56075.0,56074.0,2.03576194]
[1725564153672,0.008,56075.0,56074.0,1.94658094]
[1725564153873,0.005,56075.0,56074.0,1.96058094]
[1725564154082,0.005,56075.0,56074.0,1.56058094]
[1725564154477,0.005,56075.0,56074.0,0.96058094]
[1725564154677,0.005,56075.0,56074.0,2.10135409]
[1725564154885,0.005,56075.0,56074.0,2.19053509]
[1725564155076,0.004,56075.0,56074.0,2.03576194]
[1725564155271,0.00026758,56085.0,56079.0,0.089172]
[1725564155570,0.00026758,56085.0,56084.0,0.812765]
[1725564155774,0.00026758,56085.0,56084.0,1.11414669]
[1725564155981,0.00026758,56085.0,56084.0,1.02498169]
[1725564156174,0.00026758,56085.0,56084.0,0.66418169]
[1725564156380,0.00026758,56085.0,56084.0,0.75334669]
[1725564156588,0.00026758,56085.0,56084.0,0.75326287]
[1725564157680,0.00026758,56085.0,56084.0,1.051965]
[1725564158079,0.00026758,56085.0,56084.0,1.054965]
[1725564158283,0.08943058,56085.0,56084.0,0.3658]
[1725564158881,0.00026758,56085.0,56084.0,0.454965]
[1725564159583,0.00026758,56085.0,56084.0,0.451965]
[1725564159774,0.00126758,56085.0,56084.0,0.458965]
[1725564160387,0.00126758,56085.0,56084.0,0.459965]
[1725564160991,0.08943058,56085.0,56084.0,0.3628]
[1725564161282,0.08943058,56085.0,56084.0,0.3698]
[1725564161283,0.09043058,56085.0,56084.0,0.3698]
[1725564162187,0.00126758,56085.0,56084.0,0.3698]
[1725564162372,0.00126758,56085.0,56084.0,0.458965]
[1725564162973,0.00026758,56085.0,56084.0,0.451965]
[1725564163286,0.137836,56103.0,56084.0,0.451965]
[1725564163287,0.3608,56105.0,56084.0,1.14413]
[1725564163476,0.0041,56108.0,56101.0,1.0736]
[1725564163676,0.3608,56120.0,56107.0,0.801928]
[1725564163677,0.089115,56116.0,56107.0,0.801928]
[1725564163875,0.3698,56120.0,56112.0,0.3608]
[1725564164086,0.3698,56120.0,56115.0,0.002]
[1725564164292,0.009,56120.0,56119.0,0.3608]
[1725564164985,0.009,56120.0,56119.0,0.449909]
[1725564165176,0.009,56120.0,56119.0,0.3608]
[1725564165577,0.009,56120.0,56119.0,0.7108]
[1725564165976,0.009,56120.0,56119.0,0.3608]
[1725564166371,0.018,56120.0,56119.0,0.3608]
[1725564166881,0.009,56120.0,56119.0,0.3608]
[1725564167188,0.018,56120.0,56119.0,0.3618]
[1725564167578,0.00016683,56123.0,56119.0,0.450908]
[1725564167776,0.00016683,56123.0,56122.0,0.7608]
[1725564167973,0.00016683,56123.0,56122.0,0.7628]
[1725564168173,0.449886,56134.0,56122.0,0.7628]
[1725564168378,0.0041,56144.0,56129.0,0.7216]
[1725564168571,0.01009666,56146.0,56138.0,0.3608]
[1725564168572,0.3608,56146.0,56138.0,0.3608]
[1725564168774,0.3608,56146.0,56134.0,0.3608]
[1725564168775,0.089068,56145.0,56134.0,0.3608]
[1725564168974,0.089083,56136.0,56134.0,0.3608]
[1725564169180,0.089083,56136.0,56129.0,0.3608]
[1725564169181,0.002,56135.0,56129.0,0.36106732]
[1725564169373,0.089092,56130.0,56129.0,0.36106732]
[1725564169788,0.002,56135.0,56129.0,0.36106732]
[1725564169989,0.002,56135.0,56134.0,0.002]
[1725564170185,0.091084,56135.0,56134.0,0.002]
[1725564172597,0.178108,56154.0,56153.0,0.002]
[1725564173292,0.178108,56154.0,56153.0,0.003]
[1725564173587,0.089054,56154.0,56153.0,0.003]
[1725564173989,0.178108,56154.0,56153.0,0.003]
[1725564174194,0.089054,56154.0,56153.0,0.003]
[1725564176681,0.089054,56154.0,56153.0,0.3638]
[1725564177495,0.089054,56154.0,56153.0,0.003]
[1725564177685,0.178108,56154.0,56153.0,0.003]
[1725564178480,0.089054,56154.0,56153.0,0.003]
[1725564178685,0.178108,56154.0,56153.0,0.003]
[1725564178880,0.089054,56154.0,56153.0,0.003]
[1725564179089,0.178108,56154.0,56153.0,0.003]
[1725564181096,0.089054,56154.0,56153.0,0.003]
[1725564181292,0.449844,56161.0,56153.0,0.003]
[1725564181495,0.089046,56160.0,56156.0,0.3608]
[1725564181694,0.178108,56154.0,56153.0,0.003]
[1725564181991,0.178108,56154.0,56153.0,0.3638]
[1725564182392,0.089054,56154.0,56153.0,0.3628]
[1725564182590,0.089054,56154.0,56153.0,0.3638]
[1725564184093,0.089054,56154.0,56117.0,0.178]
[1725564184094,0.178142,56143.0,56136.0,0.449882]
[1725564184284,0.089071,56143.0,56136.0,0.3608]
[1725564184486,0.089066,56146.0,56145.0,0.089067]
[1725564184891,0.089071,56143.0,56142.0,0.45014032]
[1725564185093,0.089071,56143.0,56142.0,0.36206732]
[1725564185296,0.178142,56143.0,56142.0,0.36206732]
[1725564185595,0.178142,56143.0,56142.0,0.36106732]
[1725564185896,0.178142,56143.0,56142.0,0.36206732]
[1725564185897,0.268213,56143.0,56142.0,0.36206732]
[1725564186088,0.270213,56143.0,56142.0,0.36206732]
[1725564186491,0.181142,56143.0,56142.0,0.36206732]
[1725564188997,0.631013,56143.0,56142.0,0.00126732]
[1725564189589,0.270213,56143.0,56142.0,0.00126732]
[1725564190895,0.28029928,56143.0,56142.0,0.00126732]
[1725564191093,0.092071,56143.0,56142.0,0.09034032]
[1725564191407,0.092071,56143.0,56142.0,0.00126732]
[1725564191900,0.181142,56143.0,56142.0,0.00126732]
[1725564192104,0.092071,56143.0,56142.0,0.00126732]
[1725564193196,0.092071,56143.0,56142.0,0.09034032]
[1725564193596,0.003,56143.0,56142.0,0.17941332]
[1725564193799,0.003,56143.0,56142.0,0.77941332]
[1725564194196,0.003,56143.0,56142.0,0.69034032]
[1725564195896,0.092071,56143.0,56142.0,0.00126732]
[1725564196502,0.181142,56143.0,56142.0,0.00126732]
[1725564196909,0.270213,56143.0,56142.0,0.00126732]
[1725564197111,0.181142,56143.0,56142.0,0.00126732]
[1725564198207,0.181142,56143.0,56137.0,0.3608]
[1725564198208,0.267237,56138.0,56137.0,0.3608]
[1725564198408,0.267237,56138.0,56122.0,0.3608]
[1725564198409,0.7128,56138.0,56122.0,0.3608]
[1725564198709,0.089101,56124.0,56123.0,0.089103]
[1725564199495,0.00026731,56129.0,56122.0,0.3608]
[1725564199496,0.089103,56123.0,56122.0,0.3608]
[1725564199701,0.002,56123.0,56122.0,0.7108]
[1725564200104,0.002,56123.0,56122.0,1.399904]
[1725564200404,0.002,56123.0,56122.0,0.799904]
[1725564201002,0.002,56123.0,56122.0,1.399904]
[1725564201203,0.002,56123.0,56122.0,0.799904]
[1725564201705,0.091103,56123.0,56122.0,0.3658]
[1725564202209,0.091103,56123.0,56122.0,0.005]
[1725564202505,0.089104,56122.0,56121.0,0.3608]
[1725564202708,0.091104,56122.0,56121.0,0.3608]
[1725564202906,0.089096,56128.0,56124.0,0.0891]
[1725564203108,0.089098,56126.0,56125.0,0.3608]
[1725564203307,0.089098,56126.0,56125.0,0.43183932]
[1725564203506,0.089098,56126.0,56125.0,0.3608]
[1725564204708,0.00026731,56129.0,56128.0,0.089095]
[1725564205020,0.00026731,56129.0,56128.0,0.441095]
[1725564205507,0.00026731,56129.0,56128.0,0.487995]
[1725564206012,0.00026731,56129.0,56128.0,0.492995]
[1725564206416,0.00026731,56129.0,56128.0,1.092995]
[1725564206714,0.00026731,56129.0,56128.0,1.093995]
[1725564206912,0.00026731,56129.0,56128.0,0.493995]
[1725564208010,0.08936031,56129.0,56128.0,0.008]
[1725564209707,0.08936031,56129.0,56128.0,0.003]
[1725564210810,0.86754631,56129.0,56128.0,0.003]
[1725564211303,0.17845331,56129.0,56128.0,0.003]
[1725564213408,0.089127,56108.0,56107.0,0.0131]
[1725564213606,0.089136,56102.0,56101.0,0.3608]
[1725564214213,0.089141,56099.0,56098.0,0.089142]
[1725564214420,0.089141,56099.0,56095.0,0.3608]
[1725564214421,0.002,56099.0,56095.0,0.3608]
[1725564214709,0.002,56096.0,56095.0,0.449947]
[1725564214912,0.002,56099.0,56096.0,0.089146]
[1725564215118,0.002,56099.0,56098.0,0.002]
[1725564215504,0.091141,56099.0,56098.0,0.002]
[1725564216811,0.091141,56099.0,56098.0,0.016]
[1725564217912,0.002,56099.0,56098.0,0.08701581]
[1725564218112,0.002,56099.0,56098.0,0.016]
[1725564218419,0.002,56099.0,56098.0,0.08687088]
[1725564218609,0.002,56099.0,56098.0,0.016]
[1725564218809,0.002,56099.0,56098.0,0.105143]
[1725564219519,0.00026732,56104.0,56098.0,0.616]
[1725564219819,0.00026732,56104.0,56103.0,0.451935]
[1725564220208,0.00026732,56104.0,56103.0,1.097135]
[1725564220416,0.00026732,56104.0,56103.0,2.645935]
[1725564221717,0.00026732,56104.0,56103.0,1.965935]
[1725564222611,0.00026732,56104.0,56103.0,2.565935]
[1725564222809,0.00026732,56104.0,56103.0,1.065935]
[1725564223221,0.00026732,56104.0,56103.0,1.13675278]
[1725564223411,0.00026732,56104.0,56103.0,1.414935]
[1725564223714,0.00026732,56104.0,56103.0,2.98576538]
[1725564223922,0.00026732,56104.0,56103.0,2.9857663]
[1725564224613,0.00026732,56104.0,56103.0,2.564935]
[1725564224814,0.00026732,56104.0,56103.0,2.6357989]
[1725564225013,0.00026732,56104.0,56103.0,2.561935]
[1725564225412,0.00026732,56104.0,56103.0,1.411935]
[1725564225920,0.00026732,56104.0,56103.0,1.961935]
[1725564226117,0.00026732,56104.0,56103.0,0.3728]
[1725564226118,0.08940032,56104.0,56103.0,0.3728]
[1725564226307,0.08940032,56104.0,56103.0,0.461935]
[1725564226514,0.00026732,56104.0,56103.0,1.961935]
[1725564226810,0.00026732,56104.0,56103.0,3.00107]
[1725564227313,0.00026732,56104.0,56103.0,2.911935]
[1725564227529,0.00026732,56104.0,56103.0,1.961935]
[1725564228424,0.08940032,56104.0,56103.0,0.3728]
[1725564228924,0.43940032,56104.0,56103.0,0.3728]
[1725564229115,0.52853332,56104.0,56103.0,0.012]
[1725564229314,0.089149,56094.0,56093.0,0.00026732]
[1725564229519,0.091149,56094.0,56093.0,0.00026732]
[1725564230620,0.180298,56094.0,56093.0,0.00026732]
[1725564230811,0.08916,56088.0,56079.0,0.3608]
[1725564231014,0.002,56080.0,56079.0,0.449973]
[1725564231527,0.002,56080.0,56079.0,0.810773]
[1725564232313,0.003,56080.0,56079.0,0.818773]
[1725564233923,0.003,56080.0,56079.0,1.418773]
[1725564234125,3.7e-07,56080.0,56079.0,1.418773]
[1725564234323,3.7e-07,56080.0,56079.0,0.95466728]
[1725564234526,3.7e-07,56080.0,56079.0,2.318773]
[1725564234833,3.7e-07,56080.0,56079.0,0.7296]
[1725564235039,0.08917137,56080.0,56079.0,0.7296]
[1725564236230,0.53914237,56080.0,56079.0,0.008]
[1725564236529,0.17834237,56080.0,56079.0,0.008]
[1725564237123,0.08917137,56080.0,56079.0,0.008]
[1725564237923,0.77834237,56080.0,56079.0,0.008]
[1725564238131,0.68917137,56080.0,56079.0,0.008]
[1725564238331,0.68917137,56080.0,56074.0,0.00026732]
[1725564238332,0.089179,56075.0,56074.0,0.00026732]
[1725564238627,1.341137,56075.0,56074.0,1e-08]
[1725564238925,1.341137,56075.0,56061.0,0.05310162]
[1725564238926,0.08919,56068.0,56061.0,0.05310162]
[1725564239228,0.08919,56068.0,56066.0,0.3608]
[1725564239725,0.00026732,56073.0,56067.0,0.089192]
[1725564240828,0.089187,56070.0,56068.0,0.08919]
[1725564241021,0.089189,56069.0,56068.0,0.08919]
[1725564241330,0.00026732,56073.0,56067.0,0.05310162]
[1725564241529,0.08945032,56073.0,56068.0,0.05310162]
[1725564241718,0.00126732,56073.0,56070.0,0.05310162]
[1725564241914,0.00126732,56073.0,56072.0,0.449984]
[1725564242118,0.089171,56080.0,56072.0,0.3608]
[1725564242316,0.799964,56085.0,56079.0,0.3608]
[1725564242317,0.00124001,56085.0,56079.0,0.3608]
[1725564242633,0.08916,56088.0,56079.0,0.3608]
[1725564242634,0.08916,56088.0,56084.0,0.503044]
[1725564242832,0.08916,56088.0,56085.0,0.053079]
[1725564243332,0.08916,56088.0,56084.0,0.450885]
[1725564243333,0.00026732,56092.0,56087.0,0.053079]
[1725564243527,0.00026732,56092.0,56089.0,0.3608]
[1725564243835,0.00026732,56092.0,56089.0,0.449956]
[1725564244135,0.00026732,56092.0,56091.0,0.449954]
[1725564244431,0.00026732,56092.0,56091.0,0.799954]
[1725564244731,0.7108,56108.0,56091.0,3.03511971]
[1725564244732,0.09323,56107.0,56091.0,3.03511971]
[1725564244928,0.08913,56107.0,56103.0,0.3608]
[1725564245128,0.3608,56108.0,56103.0,0.41387046]
[1725564245327,0.3608,56108.0,56105.0,0.08913]
[1725564245629,0.0041,56122.0,56108.0,0.089125]
[1725564245630,0.00026732,56112.0,56108.0,0.089125]
[1725564245831,0.00026732,56112.0,56111.0,0.449922]
[1725564246225,0.00026732,56112.0,56111.0,0.3608]
[1725564247032,0.00026732,56112.0,56111.0,0.85299246]
[1725564247231,0.00026732,56112.0,56111.0,0.799922]
[1725564248024,0.3541,56127.0,56111.0,0.799922]
[1725564248025,0.35,56118.0,56111.0,0.3608]
[1725564248219,0.35,56118.0,56109.0,0.3608]
[1725564248432,0.004,56110.0,56109.0,0.3608]
[1725564249132,0.004,56110.0,56109.0,0.449925]
[1725564249327,0.004,56110.0,56109.0,0.451925]
[1725564250054,0.00026731,56115.0,56114.0,0.089117]
[1725564250220,0.00026731,56115.0,56114.0,0.3608]
[1725564250621,0.00026731,56115.0,56112.0,0.08912]
[1725564250821,0.004,56113.0,56112.0,0.08912]
[1725564251236,0.089124,56110.0,56109.0,0.3658]
[1725564251532,0.004,56113.0,56109.0,0.3648]
[1725564251730,0.004,56110.0,56109.0,0.3648]
[1725564252433,0.004,56110.0,56109.0,0.453925]
[1725564253129,0.004,56110.0,56109.0,1.053925]
[1725564253637,0.004,56110.0,56109.0,0.455925]
[1725564254221,0.004,56110.0,56109.0,0.453925]
[1725564254434,0.004,56110.0,56109.0,0.455925]
[1725564256529,0.004,56110.0,56109.0,0.006]
[1725564256723,0.693124,56110.0,56109.0,0.006]
[1725564257037,0.182248,56110.0,56109.0,0.006]
[1725564257559,0.782248,56110.0,56109.0,0.006]
[1725564257831,0.182248,56110.0,56109.0,0.004]
[1725564258031,0.791248,56110.0,56109.0,0.005]
[1725564258239,0.013,56110.0,56109.0,0.005]
[1725564258438,0.093124,56110.0,56109.0,0.004]
[1725564258628,0.105124,56110.0,56109.0,0.005]
[1725564260133,0.102124,56110.0,56109.0,0.005]
[1725564260735,0.097124,56110.0,56109.0,0.004]
[1725564261435,0.095124,56110.0,56109.0,0.004]
[1725564261830,0.784248,56110.0,56109.0,0.004]
[1725564262036,0.695124,56110.0,56109.0,0.004]
[1725564262232,0.095124,56110.0,56109.0,0.004]
[1725564262833,0.873372,56110.0,56109.0,0.004]
[1725564263442,0.267393,56105.0,56104.0,3.2e-07]
[1725564263741,0.267393,56105.0,56087.0,0.3608]
[1725564263742,0.089158,56088.0,56087.0,0.0131]
[1725564263940,0.089163,56085.0,56084.0,0.089165]
[1725564264142,0.093163,56085.0,56084.0,0.089165]
[1725564264734,0.004,56085.0,56084.0,0.439165]
[1725564265433,0.004,56085.0,56083.0,0.3608]
[1725564265635,0.004,56084.0,56083.0,0.3608]
[1725564265836,0.093165,56084.0,56083.0,0.3608]
[1725564266639,0.093165,56084.0,56079.0,0.00026732]
[1725564266640,0.089171,56080.0,56079.0,0.00026732]
[1725564266839,0.182342,56080.0,56079.0,0.00026732]
[1725564267746,0.0892,56062.0,56061.0,0.0131]
[1725564267930,0.089201,56061.0,56050.0,0.3608]
[1725564268134,0.093201,56061.0,56050.0,0.3608]
[1725564268334,0.089201,56061.0,56050.0,0.3608]
[1725564268738,0.089201,56061.0,56055.0,0.00026732]
[1725564270543,0.090201,56061.0,56060.0,0.3668]
[1725564272048,0.001,56061.0,56060.0,0.3668]
[1725564272260,0.001,56061.0,56060.0,1.416803]
[1725564272438,0.004,56062.0,56060.0,0.816803]
[1725564272745,0.004,56062.0,56060.0,2.316803]
[1725564273144,0.004,56062.0,56060.0,0.7276]
[1725564273550,0.089201,56061.0,56060.0,0.7276]
[1725564274048,0.089201,56061.0,56060.0,0.3668]
[1725564274942,0.005,56062.0,56060.0,0.9668]
[1725564275142,0.00026732,56066.0,56065.0,0.089195]
[1725564275337,1e-08,56066.0,56065.0,0.449995]
[1725564275543,1e-08,56066.0,56065.0,1.049995]
[1725564275944,0.089179,56076.0,56065.0,2.4608]
[1725564276142,0.089179,56076.0,56075.0,0.3608]
[1725564276548,0.178358,56076.0,56075.0,0.3608]
[1725564277848,0.178358,56076.0,56075.0,0.3618]
[1725564277849,0.099179,56076.0,56075.0,0.3618]
[1725564278348,0.01,56076.0,56075.0,0.3618]
[1725564279051,0.099178,56076.0,56075.0,0.3618]
[1725564281052,0.01,56076.0,56075.0,0.3618]
[1725564281448,0.099178,56076.0,56075.0,0.3618]
[1725564281958,0.099178,56076.0,56075.0,0.7118]
[1725564282355,0.099178,56076.0,56075.0,0.3618]
[1725564286563,0.099178,56076.0,56075.0,1.850958]
[1725564286564,0.00599999,56076.0,56075.0,1.850958]
[1725564286856,0.00026732,56081.0,56080.0,0.089171]
[1725564287056,0.0041,56099.0,56092.0,0.089152]
[1725564287356,0.0041,56099.0,56084.0,0.089164]
[1725564287357,0.3608,56100.0,56095.0,0.3608]
[1725564287573,0.3608,56100.0,56096.0,0.089145]
[1725564287950,0.3608,56100.0,56095.0,0.3608]
[1725564288154,0.004,56096.0,56095.0,0.3608]
[1725564289358,0.004,56096.0,56095.0,0.449947]
[1725564289659,0.004,56096.0,56095.0,0.454947]
[1725564290051,0.004,56096.0,56095.0,0.449947]
[1725564290258,0.004,56096.0,56095.0,1.06477298]
[1725564290763,0.004,56096.0,56095.0,1.12280989]
[1725564290965,0.004,56096.0,56095.0,1.06977298]
[1725564291465,0.004,56096.0,56095.0,1.14048887]
[1725564291652,0.004,56096.0,56095.0,1.06977298]
[1725564291860,0.004,56096.0,56095.0,2.56977298]
[1725564292262,0.004,56096.0,56095.0,2.55877298]
[1725564292449,0.004,56096.0,56095.0,2.58016386]
[1725564292450,0.005,56096.0,56095.0,2.58016386]
[1725564292952,0.00026731,56104.0,56103.0,0.089135]
[1725564293149,0.00026731,56104.0,56103.0,0.799935]
[1725564295453,0.00126731,56104.0,56103.0,0.809935]
[1725564295764,0.00126731,56104.0,56103.0,1.409935]
[1725564296669,0.00126731,56104.0,56103.0,1.49907]
[1725564296860,0.00126731,56104.0,56103.0,1.588205]
[1725564297059,0.00026731,56104.0,56103.0,1.578205]
[1725564297262,0.00126731,56104.0,56103.0,1.588205]
[1725564297661,0.00126731,56104.0,56103.0,3.088205]
[1725564300561,0.00126731,56104.0,56103.0,2.99907]
[1725564300762,0.00126731,56104.0,56103.0,3.090205]
[1725564301569,0.00126731,56104.0,56103.0,0.811935]
[1725564301763,0.00126731,56104.0,56103.0,1.590205]
[1725564302168,0.00126731,56104.0,56103.0,3.17934]
[1725564302169,3.1e-07,56104.0,56103.0,3.17934]
[1725564302368,3.1e-07,56104.0,56103.0,3.52934]
[1725564302676,3.1e-07,56104.0,56103.0,3.090205]
[1725564304375,3.1e-07,56104.0,56103.0,3.00107]
[1725564304571,3.1e-07,56104.0,56103.0,0.811935]
[1725564304758,3.1e-07,56104.0,56103.0,1.50107]
[1725564304959,3.1e-07,56104.0,56103.0,3.090205]
[1725564305165,3.1e-07,56104.0,56103.0,2.40107]
[1725564305475,3.1e-07,56104.0,56103.0,2.311935]
[1725564306175,3.1e-07,56104.0,56103.0,2.40107]
[1725564306561,3.1e-07,56104.0,56103.0,3.00107]
[1725564308373,3.1e-07,56104.0,56103.0,3.440205]